fUSD/lending_fUSD_20260621
["ID","MTS","AMOUNT","RATE_DAILY","PERIOD"]
[425921907,1782036645000,-500.0,0.00027397,2]
[425921891,1782036645000,-500.0,0.00027397,2]
[425921924,1782036645000,-835.73,0.00027397,2]
[425921896,1782036645000,-500.0,0.00027397,2]
[425921916,1782036645000,-500.0,0.00027397,2]
[425921865,1782036645000,-500.0,0.00027397,2]
[425921864,1782036645000,-500.0,0.00027397,2]
[425921866,1782036645000,-3216.01,0.00027397,2]
[425921867,1782036645000,-969.73,0.00027397,2]
[425921868,1782036645000,-556.75656938,0.00027397,2]
[425921869,1782036645000,-500.0,0.00027397,2]
[425921871,1782036645000,-1933.49,0.00027397,2]
[425921870,1782036645000,-834.65,0.00027397,2]
[425921875,1782036645000,-5268.44,0.00027397,2]
[425921872,1782036645000,-500.0,0.00027397,2]
[425921874,1782036645000,-500.0,0.00027397,2]
[425921873,1782036645000,-500.0,0.00027397,2]
[425921877,1782036645000,-524.63,0.00027397,2]
[425921887,1782036645000,-648.35,0.00027397,2]
[425921876,1782036645000,-500.0,0.00027397,2]
[425921879,1782036645000,-259.00130301,0.00027397,2]
[425921881,1782036645000,-4806.58,0.00027397,2]
[425921878,1782036645000,-500.0,0.00027397,2]
[425921880,1782036645000,-1119.73,0.00027397,2]
[425921882,1782036645000,-935.79,0.00027397,2]
[425921885,1782036645000,-500.0,0.00027397,2]
[425921883,1782036645000,-500.0,0.00027397,2]
[425921884,1782036645000,-951.62,0.00027397,2]
[425921886,1782036645000,-4809.24,0.00027397,2]
[425921888,1782036645000,-500.0,0.00027397,2]
[425921893,1782036645000,-500.0,0.00027397,2]
[425921889,1782036645000,-500.0,0.00027397,2]
[425921921,1782036645000,-500.0,0.00027397,2]
[425921939,1782036645000,-500.0,0.00027397,2]
[425921919,1782036645000,-500.0,0.00027397,2]
[425921957,1782036645000,-500.0,0.00027397,2]
[425921954,1782036645000,-500.0,0.00027397,2]
[425921959,1782036645000,-500.0,0.00027397,2]
[425921951,1782036645000,-500.0,0.00027397,2]
[425921956,1782036645000,-500.0,0.00027397,2]
[425921958,1782036645000,-500.0,0.00027397,2]
[425921963,1782036645000,-500.0,0.00027397,2]
[425921917,1782036645000,-500.0,0.00027397,2]
[425921962,1782036645000,-500.0,0.00027397,2]
[425921966,1782036645000,-500.0,0.00027397,2]
[425921965,1782036645000,-500.0,0.00027397,2]
[425921964,1782036645000,-500.0,0.00027397,2]
[425921967,1782036645000,-500.0,0.00027397,2]
[425921968,1782036645000,-500.0,0.00027397,2]
[425921970,1782036645000,-500.0,0.00027397,2]
[425921969,1782036645000,-500.0,0.00027397,2]
[425921972,1782036645000,-500.0,0.00027397,2]
[425921971,1782036645000,-500.0,0.00027397,2]
[425921975,1782036645000,-500.0,0.00027397,2]
[425921977,1782036645000,-500.0,0.00027397,2]
[425921980,1782036645000,-169.5427946,0.00027397,2]
[425921981,1782036645000,-500.0,0.00027397,2]
[425921978,1782036645000,-500.0,0.00027397,2]
[425921979,1782036645000,-500.0,0.00027397,2]
[425921982,1782036645000,-500.0,0.00027397,2]
[425921983,1782036645000,-500.0,0.00027397,2]
[425921984,1782036645000,-500.0,0.00027397,2]
[425921961,1782036645000,-500.0,0.00027397,2]
[425921960,1782036645000,-500.0,0.00027397,2]
[425921973,1782036645000,-500.0,0.00027397,2]
[425921952,1782036645000,-500.0,0.00027397,2]
[425921931,1782036645000,-500.0,0.00027397,2]
[425921935,1782036645000,-500.0,0.00027397,2]
[425921932,1782036645000,-500.0,0.00027397,2]
[425921936,1782036645000,-500.0,0.00027397,2]
[425921953,1782036645000,-500.0,0.00027397,2]
[425921933,1782036645000,-918.31,0.00027397,2]
[425921934,1782036645000,-2467.13,0.00027397,2]
[425921925,1782036645000,-500.0,0.00027397,2]
[425921930,1782036645000,-500.0,0.00027397,2]
[425921926,1782036645000,-500.0,0.00027397,2]
[425921929,1782036645000,-500.0,0.00027397,2]
[425921928,1782036645000,-500.0,0.00027397,2]
[425921937,1782036645000,-500.0,0.00027397,2]
[425921927,1782036645000,-500.0,0.00027397,2]
[425921941,1782036645000,-500.0,0.00027397,2]
[425921955,1782036645000,-550.84,0.00027397,2]
[425921950,1782036645000,-500.0,0.00027397,2]
[425921946,1782036645000,-500.0,0.00027397,2]
[425921945,1782036645000,-500.0,0.00027397,2]
[425921943,1782036645000,-500.0,0.00027397,2]
[425921944,1782036645000,-500.0,0.00027397,2]
[425921949,1782036645000,-500.0,0.00027397,2]
[425921947,1782036645000,-500.0,0.00027397,2]
[425921938,1782036645000,-500.0,0.00027397,2]
[425921942,1782036645000,-500.0,0.00027397,2]
[425921940,1782036645000,-648.87418673,0.00027397,2]
[425921948,1782036645000,-500.0,0.00027397,2]
[425922016,1782036646000,-500.0,0.00027397,2]
[425922006,1782036646000,-500.0,0.00027397,2]
[425922008,1782036646000,-500.0,0.00027397,2]
[425922010,1782036646000,-500.0,0.00027397,2]
[425922013,1782036646000,-500.0,0.00027397,2]
[425922011,1782036646000,-532.94558662,0.00027397,2]
[425922015,1782036646000,-500.78,0.00027397,2]
[425922017,1782036646000,-500.0,0.00027397,2]
[425922018,1782036646000,-500.0,0.00027397,2]
[425922020,1782036646000,-607.49,0.00027397,2]
[425922037,1782036646000,-500.0,0.00027397,2]
[425922019,1782036646000,-500.0,0.00027397,2]
[425922024,1782036646000,-500.0,0.00027397,2]
[425922023,1782036646000,-500.0,0.00027397,2]
[425922022,1782036646000,-500.0,0.00027397,2]
[425922025,1782036646000,-500.0,0.00027397,2]
[425922026,1782036646000,-500.0,0.00027397,2]
[425922035,1782036646000,-500.0,0.00027397,2]
[425922036,1782036646000,-500.0,0.00027397,2]
[425922012,1782036646000,-500.0,0.00027397,2]
[425922021,1782036646000,-500.0,0.00027397,2]
[425922009,1782036646000,-500.0,0.00027397,2]
[425922034,1782036646000,-500.0,0.00027397,2]
[425922005,1782036646000,-501.82455083,0.00027397,2]
[425922027,1782036646000,-500.0,0.00027397,2]
[425921986,1782036646000,-500.0,0.00027397,2]
[425921987,1782036646000,-500.0,0.00027397,2]
[425921985,1782036646000,-500.0,0.00027397,2]
[425921990,1782036646000,-500.0,0.00027397,2]
[425921989,1782036646000,-500.0,0.00027397,2]
[425921991,1782036646000,-500.0,0.00027397,2]
[425921996,1782036646000,-500.0,0.00027397,2]
[425921995,1782036646000,-500.0,0.00027397,2]
[425921992,1782036646000,-6132.74,0.00027397,2]
[425922001,1782036646000,-500.0,0.00027397,2]
[425921993,1782036646000,-500.0,0.00027397,2]
[425922000,1782036646000,-500.0,0.00027397,2]
[425921994,1782036646000,-500.0,0.00027397,2]
[425921997,1782036646000,-500.0,0.00027397,2]
[425922002,1782036646000,-500.0,0.00027397,2]
[425921999,1782036646000,-500.0,0.00027397,2]
[425921998,1782036646000,-500.0,0.00027397,2]
[425922004,1782036646000,-500.0,0.00027397,2]
[425922003,1782036646000,-500.0,0.00027397,2]
[425922014,1782036646000,-500.0,0.00027397,2]
[425922007,1782036646000,-500.0,0.00027397,2]
[425922029,1782036646000,-500.0,0.00027397,2]
[425922047,1782036646000,-500.0,0.00027397,2]
[425922072,1782036646000,-500.0,0.00027397,2]
[425922058,1782036646000,-500.0,0.00027397,2]
[425922056,1782036646000,-500.0,0.00027397,2]
[425922059,1782036646000,-500.0,0.00027397,2]
[425922064,1782036646000,-500.0,0.00027397,2]
[425922066,1782036646000,-500.0,0.00027397,2]
[425922065,1782036646000,-500.0,0.00027397,2]
[425922063,1782036646000,-500.0,0.00027397,2]
[425922068,1782036646000,-500.0,0.00027397,2]
[425922067,1782036646000,-500.0,0.00027397,2]
[425922057,1782036646000,-500.0,0.00027397,2]
[425922069,1782036646000,-456.54935189,0.00027397,2]
[425922070,1782036646000,-500.0,0.00027397,2]
[425922071,1782036646000,-500.0,0.00027397,2]
[425922075,1782036646000,-500.0,0.00027397,2]
[425922074,1782036646000,-500.0,0.00027397,2]
[425922078,1782036646000,-500.0,0.00027397,2]
[425922076,1782036646000,-500.0,0.00027397,2]
[425922077,1782036646000,-500.0,0.00027397,2]
[425922079,1782036646000,-500.0,0.00027397,2]
[425922031,1782036646000,-500.0,0.00027397,2]
[425922073,1782036646000,-471.34774181,0.00027397,2]
[425922055,1782036646000,-637.81,0.00027397,2]
[425922060,1782036646000,-547.19,0.00027397,2]
[425922052,1782036646000,-500.0,0.00027397,2]
[425922030,1782036646000,-500.0,0.00027397,2]
[425922028,1782036646000,-300.0,0.00027397,2]
[425922032,1782036646000,-500.0,0.00027397,2]
[425922033,1782036646000,-526.04285834,0.00027397,2]
[425922038,1782036646000,-500.0,0.00027397,2]
[425922040,1782036646000,-607.86865031,0.00027397,2]
[425922053,1782036646000,-491.40629313,0.00027397,2]
[425922042,1782036646000,-500.0,0.00027397,2]
[425922044,1782036646000,-500.0,0.00027397,2]
[425922039,1782036646000,-500.0,0.00027397,2]
[425922041,1782036646000,-544.29645383,0.00027397,2]
[425922043,1782036646000,-517.67184534,0.00027397,2]
[425922045,1782036646000,-500.0,0.00027397,2]
[425922048,1782036646000,-547.39,0.00027397,2]
[425922046,1782036646000,-500.0,0.00027397,2]
[425922080,1782036646000,-500.0,0.00027397,2]
[425922051,1782036646000,-627.07629965,0.00027397,2]
[425922061,1782036646000,-500.0,0.00027397,2]
[425922050,1782036646000,-500.0,0.00027397,2]
[425922049,1782036646000,-500.0,0.00027397,2]
[425922054,1782036646000,-602.27,0.00027397,2]
[425922106,1782036647000,-500.0,0.00027397,2]
[425922117,1782036647000,-500.0,0.00027397,2]
[425922123,1782036647000,-500.0,0.00027397,2]
[425922125,1782036647000,-500.0,0.00027397,2]
[425922118,1782036647000,-216.59211478,0.00027397,2]
[425922113,1782036647000,-5549.57,0.00027397,2]
[425922108,1782036647000,-544.03,0.00027397,2]
[425922115,1782036647000,-4142.16,0.00027397,2]
[425922109,1782036647000,-4234.92,0.00027397,2]
[425922129,1782036647000,-500.0,0.00027397,2]
[425922110,1782036647000,-500.0,0.00027397,2]
[425922124,1782036647000,-500.0,0.00027397,2]
[425922147,1782036647000,-500.0,0.00027397,2]
[425922121,1782036647000,-500.0,0.00027397,2]
[425922122,1782036647000,-529.95,0.00027397,2]
[425922128,1782036647000,-500.0,0.00027397,2]
[425922119,1782036647000,-500.0,0.00027397,2]
[425922127,1782036647000,-500.0,0.00027397,2]
[425922126,1782036647000,-500.0,0.00027397,2]
[425922135,1782036647000,-700.0,0.00027397,2]
[425922130,1782036647000,-500.0,0.00027397,2]
[425922132,1782036647000,-500.0,0.00027397,2]
[425922133,1782036647000,-500.0,0.00027397,2]
[425922131,1782036647000,-1121.32,0.00027397,2]
[425922111,1782036647000,-500.0,0.00027397,2]
[425922120,1782036647000,-11591.31,0.00027397,2]
[425922114,1782036647000,-500.0,0.00027397,2]
[425922091,1782036647000,-500.0,0.00027397,2]
[425922112,1782036647000,-500.0,0.00027397,2]
[425922082,1782036647000,-500.0,0.00027397,2]
[425922081,1782036647000,-300.80559119,0.00027397,2]
[425922083,1782036647000,-302.52690969,0.00027397,2]
[425922085,1782036647000,-500.0,0.00027397,2]
[425922084,1782036647000,-500.0,0.00027397,2]
[425922136,1782036647000,-518.66496677,0.00027397,2]
[425922086,1782036647000,-500.0,0.00027397,2]
[425922087,1782036647000,-500.0,0.00027397,2]
[425922088,1782036647000,-500.0,0.00027397,2]
[425922090,1782036647000,-741.55,0.00027397,2]
[425922092,1782036647000,-500.0,0.00027397,2]
[425922093,1782036647000,-500.0,0.00027397,2]
[425922107,1782036647000,-500.0,0.00027397,2]
[425922089,1782036647000,-782.44,0.00027397,2]
[425922104,1782036647000,-4904.56,0.00027397,2]
[425922096,1782036647000,-500.0,0.00027397,2]
[425922100,1782036647000,-500.0,0.00027397,2]
[425922099,1782036647000,-589.86,0.00027397,2]
[425922095,1782036647000,-500.0,0.00027397,2]
[425922101,1782036647000,-179.93213212,0.00027397,2]
[425922103,1782036647000,-500.0,0.00027397,2]
[425922102,1782036647000,-8344.59,0.00027397,2]
[425922105,1782036647000,-518.81,0.00027397,2]
[425922094,1782036647000,-8596.43,0.00027397,2]
[425922098,1782036647000,-4513.58,0.00027397,2]
[425922116,1782036647000,-500.0,0.00027397,2]
[425922097,1782036647000,-500.0,0.00027397,2]
[425922134,1782036647000,-737.59,0.00027397,2]
[425922154,1782036647000,-500.0,0.00027397,2]
[425922138,1782036647000,-500.0,0.00027397,2]
[425922168,1782036647000,-500.0,0.00027397,2]
[425922169,1782036647000,-752.17,0.00027397,2]
[425922171,1782036647000,-500.0,0.00027397,2]
[425922137,1782036647000,-560.95,0.00027397,2]
[425922173,1782036647000,-500.0,0.00027397,2]
[425922172,1782036647000,-4920.34,0.00027397,2]
[425922174,1782036647000,-500.0,0.00027397,2]
[425922177,1782036647000,-500.0,0.00027397,2]
[425922180,1782036647000,-500.0,0.00027397,2]
[425922183,1782036647000,-8802.4,0.00027397,2]
[425922181,1782036647000,-500.0,0.00027397,2]
[425922185,1782036647000,-3641.08,0.00027397,2]
[425922167,1782036647000,-500.0,0.00027397,2]
[425922184,1782036647000,-557.88013338,0.00027397,2]
[425922178,1782036647000,-6191.78,0.00027397,2]
[425922179,1782036647000,-500.0,0.00027397,2]
[425922186,1782036647000,-500.0,0.00027397,2]
[425922187,1782036647000,-1000.0,0.00027397,2]
[425922188,1782036647000,-500.0,0.00027397,2]
[425922190,1782036647000,-500.0,0.00027397,2]
[425922191,1782036647000,-8686.83,0.00027397,2]
[425922193,1782036647000,-500.0,0.00027397,2]
[425922189,1782036647000,-500.0,0.00027397,2]
[425922192,1782036647000,-500.0,0.00027397,2]
[425922195,1782036647000,-500.0,0.00027397,2]
[425922194,1782036647000,-500.0,0.00027397,2]
[425922182,1782036647000,-504.3,0.00027397,2]
[425922166,1782036647000,-502.59586822,0.00027397,2]
[425922170,1782036647000,-614.43,0.00027397,2]
[425922164,1782036647000,-7434.82,0.00027397,2]
[425922140,1782036647000,-500.0,0.00027397,2]
[425922139,1782036647000,-561.35195207,0.00027397,2]
[425922143,1782036647000,-500.0,0.00027397,2]
[425922142,1782036647000,-3462.02,0.00027397,2]
[425922141,1782036647000,-170.260492,0.00027397,2]
[425922144,1782036647000,-508.58,0.00027397,2]
[425922145,1782036647000,-500.0,0.00027397,2]
[425922176,1782036647000,-500.0,0.00027397,2]
[425922146,1782036647000,-500.0,0.00027397,2]
[425922150,1782036647000,-500.0,0.00027397,2]
[425922149,1782036647000,-150.0,0.00027397,2]
[425922151,1782036647000,-500.0,0.00027397,2]
[425922153,1782036647000,-500.0,0.00027397,2]
[425922148,1782036647000,-334.2488488,0.00027397,2]
[425922163,1782036647000,-500.0,0.00027397,2]
[425922158,1782036647000,-503.69,0.00027397,2]
[425922152,1782036647000,-500.0,0.00027397,2]
[425922159,1782036647000,-500.0,0.00027397,2]
[425922160,1782036647000,-500.0,0.00027397,2]
[425922161,1782036647000,-4407.46,0.00027397,2]
[425922156,1782036647000,-500.0,0.00027397,2]
[425922157,1782036647000,-161.00287,0.00027397,2]
[425922162,1782036647000,-4893.3,0.00027397,2]
[425922165,1782036647000,-526.71452309,0.00027397,2]
[425922175,1782036647000,-500.0,0.00027397,2]
[425922155,1782036647000,-225.28468397,0.00027397,2]
[425922236,1782036648000,-6967.46,0.00027397,2]
[425922239,1782036648000,-500.0,0.00027397,2]
[425922235,1782036648000,-500.0,0.00027397,2]
[425922232,1782036648000,-500.0,0.00027397,2]
[425922237,1782036648000,-479.75618866,0.00027397,2]
[425922234,1782036648000,-500.0,0.00027397,2]
[425922233,1782036648000,-500.0,0.00027397,2]
[425922229,1782036648000,-513.04,0.00027397,2]
[425922231,1782036648000,-2754.08,0.00027397,2]
[425922230,1782036648000,-500.0,0.00027397,2]
[425922227,1782036648000,-500.0,0.00027397,2]
[425922228,1782036648000,-500.0,0.00027397,2]
[425922238,1782036648000,-500.0,0.00027397,2]
[425922257,1782036648000,-500.0,0.00027397,2]
[425922242,1782036648000,-500.0,0.00027397,2]
[425922241,1782036648000,-500.0,0.00027397,2]
[425922246,1782036648000,-500.0,0.00027397,2]
[425922251,1782036648000,-500.0,0.00027397,2]
[425922250,1782036648000,-500.0,0.00027397,2]
[425922245,1782036648000,-500.0,0.00027397,2]
[425922243,1782036648000,-673.1,0.00027397,2]
[425922252,1782036648000,-500.0,0.00027397,2]
[425922244,1782036648000,-4469.05,0.00027397,2]
[425922249,1782036648000,-58770.661065,0.00027397,2]
[425922247,1782036648000,-500.0,0.00027397,2]
[425922253,1782036648000,-500.0,0.00027397,2]
[425922223,1782036648000,-3690.26,0.00027397,2]
[425922240,1782036648000,-500.0,0.00027397,2]
[425922222,1782036648000,-500.0,0.00027397,2]
[425922248,1782036648000,-913.0,0.00027397,2]
[425922221,1782036648000,-904.85,0.00027397,2]
[425922256,1782036648000,-2750.97,0.00027397,2]
[425922200,1782036648000,-501.82455083,0.00027397,2]
[425922201,1782036648000,-9537.38,0.00027397,2]
[425922197,1782036648000,-15685.64,0.00027397,2]
[425922199,1782036648000,-500.0,0.00027397,2]
[425922198,1782036648000,-3642.96,0.00027397,2]
[425922196,1782036648000,-500.0,0.00027397,2]
[425922202,1782036648000,-9148.39,0.00027397,2]
[425922204,1782036648000,-501.82455083,0.00027397,2]
[425922203,1782036648000,-507.68186157,0.00027397,2]
[425922213,1782036648000,-4116.89,0.00027397,2]
[425922214,1782036648000,-523.34070267,0.00027397,2]
[425922209,1782036648000,-500.0,0.00027397,2]
[425922225,1782036648000,-500.0,0.00027397,2]
[425922206,1782036648000,-501.82455083,0.00027397,2]
[425922208,1782036648000,-762.22,0.00027397,2]
[425922210,1782036648000,-500.0,0.00027397,2]
[425922211,1782036648000,-500.0,0.00027397,2]
[425922205,1782036648000,-501.82455083,0.00027397,2]
[425922212,1782036648000,-1130.75,0.00027397,2]
[425922226,1782036648000,-694.24,0.00027397,2]
[425922216,1782036648000,-500.0,0.00027397,2]
[425922215,1782036648000,-793.21,0.00027397,2]
[425922217,1782036648000,-3648.64,0.00027397,2]
[425922218,1782036648000,-539.98781465,0.00027397,2]
[425922219,1782036648000,-500.0,0.00027397,2]
[425922220,1782036648000,-7006.76,0.00027397,2]
[425922224,1782036648000,-574.59,0.00027397,2]
[425922207,1782036648000,-501.82455083,0.00027397,2]
[425922258,1782036648000,-500.0,0.00027397,2]
[425922262,1782036648000,-500.0,0.00027397,2]
[425922255,1782036648000,-2177.43,0.00027397,2]
[425922290,1782036648000,-500.0,0.00027397,2]
[425922291,1782036648000,-500.0,0.00027397,2]
[425922292,1782036648000,-500.0,0.00027397,2]
[425922294,1782036648000,-1500.0,0.00027397,2]
[425922295,1782036648000,-151.0,0.00027397,2]
[425922293,1782036648000,-500.0,0.00027397,2]
[425922297,1782036648000,-151.0,0.00027397,2]
[425922296,1782036648000,-151.0,0.00027397,2]
[425922300,1782036648000,-8580.7,0.00027397,10]
[425922301,1782036648000,-449.5,0.000274,7]
[425922298,1782036648000,-163.901188,0.00027397,2]
[425922299,1782036648000,-10296.85,0.00027397,10]
[425922304,1782036648000,-544.0,0.000275,7]
[425922302,1782036648000,-950.76,0.000274,7]
[425922305,1782036648000,-1108.89619604,0.00027533,2]
[425922307,1782036648000,-1108.89619604,0.00027533,2]
[425922310,1782036648000,-1108.89619604,0.00027533,2]
[425922303,1782036648000,-1200.29,0.000274,7]
[425922308,1782036648000,-1108.89619604,0.00027533,2]
[425922312,1782036648000,-1108.89619604,0.00027533,2]
[425922311,1782036648000,-1108.89619604,0.00027533,2]
[425922309,1782036648000,-1108.89619604,0.00027533,2]
[425922313,1782036648000,-1108.89619604,0.00027533,2]
[425922306,1782036648000,-1108.89619604,0.00027533,2]
[425922315,1782036648000,-1108.89619604,0.00027533,2]
[425922316,1782036648000,-1108.89619604,0.00027533,2]
[425922259,1782036648000,-7308.09,0.00027397,2]
[425922285,1782036648000,-500.0,0.00027397,2]
[425922289,1782036648000,-1820.63,0.00027397,2]
[425922314,1782036648000,-1108.89619604,0.00027533,2]
[425922287,1782036648000,-500.0,0.00027397,2]
[425922265,1782036648000,-242.5539186,0.00027397,2]
[425922317,1782036648000,-1108.89619603,0.00027533,2]
[425922260,1782036648000,-500.0,0.00027397,2]
[425922264,1782036648000,-10370.49,0.00027397,2]
[425922254,1782036648000,-500.0,0.00027397,2]
[425922261,1782036648000,-170.260492,0.00027397,2]
[425922318,1782036648000,-311.76,0.00027556,2]
[425922263,1782036648000,-6610.19,0.00027397,2]
[425922282,1782036648000,-500.0,0.00027397,2]
[425922277,1782036648000,-5168.02,0.00027397,2]
[425922275,1782036648000,-500.0,0.00027397,2]
[425922270,1782036648000,-3409.76,0.00027397,2]
[425922268,1782036648000,-500.0,0.00027397,2]
[425922267,1782036648000,-500.0,0.00027397,2]
[425922266,1782036648000,-161.00287,0.00027397,2]
[425922269,1782036648000,-500.0,0.00027397,2]
[425922288,1782036648000,-500.0,0.00027397,2]
[425922273,1782036648000,-518.89859704,0.00027397,2]
[425922280,1782036648000,-1012.47,0.00027397,2]
[425922281,1782036648000,-500.0,0.00027397,2]
[425922284,1782036648000,-500.0,0.00027397,2]
[425922279,1782036648000,-500.0,0.00027397,2]
[425922278,1782036648000,-500.0,0.00027397,2]
[425922286,1782036648000,-500.0,0.00027397,2]
[425922274,1782036648000,-2245.52,0.00027397,2]
[425922272,1782036648000,-500.0,0.00027397,2]
[425922276,1782036648000,-578.58,0.00027397,2]
[425922271,1782036648000,-500.0,0.00027397,2]
[425922283,1782036648000,-500.0,0.00027397,2]
[425922353,1782036649000,-500.0,0.00027671,2]
[425922360,1782036649000,-500.0,0.00027671,2]
[425922361,1782036649000,-500.0,0.00027671,2]
[425922355,1782036649000,-500.0,0.00027671,2]
[425922356,1782036649000,-500.0,0.00027671,2]
[425922348,1782036649000,-500.0,0.00027671,2]
[425922351,1782036649000,-500.0,0.00027671,2]
[425922362,1782036649000,-500.0,0.00027671,2]
[425922354,1782036649000,-500.0,0.00027671,2]
[425922352,1782036649000,-500.0,0.00027671,2]
[425922358,1782036649000,-500.0,0.00027671,2]
[425922363,1782036649000,-500.0,0.00027671,2]
[425922375,1782036649000,-500.0,0.00027671,2]
[425922359,1782036649000,-500.0,0.00027671,2]
[425922365,1782036649000,-662.54,0.00027671,2]
[425922366,1782036649000,-500.0,0.00027671,2]
[425922369,1782036649000,-500.0,0.00027671,2]
[425922364,1782036649000,-500.0,0.00027671,2]
[425922372,1782036649000,-500.0,0.00027671,2]
[425922370,1782036649000,-500.0,0.00027671,2]
[425922367,1782036649000,-500.0,0.00027671,2]
[425922368,1782036649000,-500.0,0.00027671,2]
[425922373,1782036649000,-500.0,0.00027671,2]
[425922371,1782036649000,-500.0,0.00027671,2]
[425922374,1782036649000,-1087.51,0.00027671,2]
[425922347,1782036649000,-647.17079917,0.00027671,2]
[425922357,1782036649000,-500.0,0.00027671,2]
[425922349,1782036649000,-489.807298,0.00027671,2]
[425922333,1782036649000,-735.98,0.0002767,2]
[425922345,1782036649000,-1108.89619603,0.0002767,2]
[425922376,1782036649000,-500.0,0.00027671,2]
[425922325,1782036649000,-215.71025722,0.0002767,2]
[425922326,1782036649000,-1428.58,0.0002767,2]
[425922319,1782036649000,-212.539835,0.00027655,14]
[425922320,1782036649000,-200.0,0.0002766,2]
[425922321,1782036649000,-735.98,0.00027669,2]
[425922323,1782036649000,-500.0,0.0002767,2]
[425922322,1782036649000,-500.0,0.0002767,2]
[425922324,1782036649000,-500.0,0.0002767,2]
[425922329,1782036649000,-500.0,0.0002767,2]
[425922339,1782036649000,-1108.89619604,0.0002767,2]
[425922330,1782036649000,-500.0,0.0002767,2]
[425922337,1782036649000,-1108.89619604,0.0002767,2]
[425922331,1782036649000,-500.0,0.0002767,2]
[425922335,1782036649000,-1108.89619604,0.0002767,2]
[425922327,1782036649000,-1428.58,0.0002767,2]
[425922338,1782036649000,-1108.89619604,0.0002767,2]
[425922332,1782036649000,-735.98,0.0002767,2]
[425922336,1782036649000,-1108.89619604,0.0002767,2]
[425922334,1782036649000,-1108.89619604,0.0002767,2]
[425922328,1782036649000,-1428.58,0.0002767,2]
[425922341,1782036649000,-1108.89619604,0.0002767,2]
[425922340,1782036649000,-1108.89619604,0.0002767,2]
[425922343,1782036649000,-1108.89619604,0.0002767,2]
[425922342,1782036649000,-1108.89619604,0.0002767,2]
[425922344,1782036649000,-1108.89619604,0.0002767,2]
[425922346,1782036649000,-1108.89619603,0.0002767,2]
[425922350,1782036649000,-500.0,0.00027671,2]
[425922379,1782036649000,-500.0,0.00027671,2]
[425922383,1782036649000,-500.0,0.00027671,2]
[425922417,1782036649000,-500.0,0.00027671,2]
[425922413,1782036649000,-500.0,0.00027671,2]
[425922411,1782036649000,-500.0,0.00027671,2]
[425922414,1782036649000,-837.02,0.00027671,2]
[425922415,1782036649000,-500.0,0.00027671,2]
[425922420,1782036649000,-500.0,0.00027671,2]
[425922412,1782036649000,-600.56388892,0.00027671,2]
[425922418,1782036649000,-500.0,0.00027671,2]
[425922419,1782036649000,-500.0,0.00027671,2]
[425922416,1782036649000,-500.0,0.00027671,2]
[425922421,1782036649000,-500.0,0.00027671,2]
[425922424,1782036649000,-500.0,0.00027671,2]
[425922423,1782036649000,-639.54625155,0.00027671,2]
[425922431,1782036649000,-600.62128825,0.00027671,2]
[425922429,1782036649000,-500.0,0.00027671,2]